bitfinex/quotes_ETHUSD_20220106
["timestamp","ask_amount","ask_price","bid_price","bid_amount"]
[1641511507408,0.00207501,3407.0,3406.9,20.83217413]
[1641511508258,0.00207501,3407.0,3406.9,3.71217413]
[1641511509058,0.00207501,3407.0,3406.9,6.57850413]
[1641511509254,0.00207501,3407.0,3406.9,23.64850413]
[1641511509456,0.00207501,3407.0,3406.9,23.57912289]
[1641511509856,0.00207501,3407.0,3406.9,25.00450511]
[1641511510056,0.00207501,3407.0,3406.9,26.45000511]
[1641511510256,0.00207501,3407.0,3406.9,24.95828672]
[1641511510457,0.00207501,3407.0,3406.9,26.51938635]
[1641511510859,0.00502004,3408.0,3407.1,1.04929321]
[1641511511162,0.00511582,3407.9,3407.6,0.73344]
[1641511511358,0.00511582,3407.9,3407.8,17.07]
[1641511511609,0.00502004,3408.0,3407.8,18.37]
[1641511512008,0.00502004,3408.0,3407.9,1.13819997]
[1641511512211,0.00502004,3408.0,3407.9,18.20819997]
[1641511512507,3.54149242,3409.1,3408.5,1.46642]
[1641511512508,4.84761814,3409.1,3408.5,1.46642]
[1641511512707,4.84761814,3409.1,3408.2,1.37822473]
[1641511512708,3.54149242,3409.1,3408.2,6.45060163]
[1641511512906,0.00568423,3409.0,3408.6,17.07]
[1641511513107,0.00568423,3409.0,3408.7,2.32346473]
[1641511513307,0.00511581,3408.9,3408.8,17.07]
[1641511513508,0.00511581,3408.9,3408.8,17.80319]
[1641511514311,0.00511581,3408.9,3408.8,18.10319]
[1641511514508,0.00511581,3408.9,3408.8,19.40319]
[1641511514908,1.35095393,3409.5,3408.8,19.40319]
[1641511514909,1.30606974,3409.5,3409.1,1.4662]
[1641511515111,1.30606974,3409.5,3409.3,0.73314]
[1641511515358,0.00284212,3409.4,3409.3,17.80314]
[1641511516160,0.00284212,3409.4,3409.3,18.53628]
[1641511516560,0.00284212,3409.4,3409.3,21.33027991]
[1641511517569,4.212e-05,3409.4,3409.3,50.89233543]
[1641511517962,6.2,3410.1,3409.7,0.7329]
[1641511518163,6.2,3410.1,3409.9,1.4658]
[1641511518364,6.2,3410.1,3410.0,17.07]
[1641511518563,6.2,3410.1,3410.0,18.07]
[1641511518564,1.16839441,3410.1,3410.0,18.07]
[1641511518765,0.6843476,3411.2,3410.8,1.04841765]
[1641511518969,0.6843476,3411.2,3410.9,17.07]
[1641511519205,0.0096632,3411.1,3411.0,17.07]
[1641511520106,0.0096632,3411.1,3411.0,19.97]
[1641511520306,0.0096632,3411.1,3411.0,20.00018079]
[1641511520515,0.0096632,3411.1,3411.0,20.30018079]
[1641511520708,0.6843476,3411.2,3411.1,17.07]
[1641511520709,0.6440108,3411.2,3411.1,17.07]
[1641511520906,0.6440108,3411.2,3411.1,17.74745449]
[1641511521510,0.6440108,3411.2,3411.1,19.04745449]
[1641511521705,0.6440108,3411.2,3411.1,0.67745449]
[1641511521906,0.6440108,3411.2,3411.0,3.2]
[1641511522606,0.6440108,3411.2,3411.0,3.23865985]
[1641511522857,0.6440108,3411.2,3411.0,3.2]
[1641511523058,0.6440108,3411.2,3411.0,20.27]
[1641511523258,0.6440108,3411.2,3411.0,20.30134602]
[1641511523460,0.6440108,3411.2,3411.0,20.00134602]
[1641511523660,0.6440108,3411.2,3411.0,19.95134602]
[1641511524260,0.6440108,3411.2,3411.0,19.98620708]
[1641511524461,0.6440108,3411.2,3411.0,19.95134602]
[1641511524861,0.6440108,3411.2,3411.0,19.98173635]
[1641511525081,0.6440108,3411.2,3411.0,19.95134602]
[1641511525267,0.6440108,3411.2,3411.0,2.88134602]
[1641511525463,0.6440108,3411.2,3411.0,2.91633274]
[1641511525662,0.6440108,3411.2,3411.0,2.88134602]
[1641511526728,0.6440108,3411.2,3411.0,19.95134602]
[1641511527125,0.6440108,3411.2,3411.0,19.99000417]
[1641511527527,0.6440108,3411.2,3411.0,19.95134602]
[1641511528128,0.6440108,3411.2,3411.1,10.33253583]
[1641511528333,0.6440108,3411.2,3411.1,10.37095482]
[1641511528731,0.6440108,3411.2,3411.1,29.18714575]
[1641511529235,0.6440108,3411.2,3411.1,20.03134575]
[1641511529436,0.74145804,3411.1,3409.9,4.56918227]
[1641511529631,0.74145804,3411.1,3409.9,2.37097227]
[1641511529632,0.01203025,3410.0,3409.9,2.37097227]
[1641511529932,0.01203025,3410.0,3409.8,3.71604979]
[1641511530381,0.42,3410.5,3409.8,3.71604979]
[1641511530382,1.3264231,3409.9,3409.8,3.71604979]
[1641511530773,1.3264231,3409.9,3409.8,20.7934393]
[1641511530974,1.3264231,3409.9,3409.8,17.07738951]
[1641511531172,1.3264231,3409.9,3409.8,0.00738951]
[1641511531577,1.3264231,3409.9,3409.5,0.00513942]
[1641511531975,1.3264231,3409.9,3409.6,0.00852636]
[1641511533177,0.00513942,3410.5,3409.6,0.00852636]
[1641511533377,0.00513942,3410.5,3409.6,17.07852636]
[1641511533777,1.41120111,3410.4,3409.7,0.00795793]
[1641511534211,1.36191358,3410.0,3409.7,0.00795793]
[1641511537115,1.36191358,3410.0,3409.6,0.00852636]
[1641511537713,1.41120111,3410.4,3409.6,0.00852636]
[1641511537714,0.00513942,3410.5,3409.6,0.00852636]
[1641511538964,1.14188232,3410.2,3409.6,0.00852636]
[1641511539668,1.14188232,3410.2,3409.7,17.07]
[1641511542316,1.13189832,3410.2,3409.7,17.07]
[1641511546575,1.37870437,3410.7,3409.7,17.07]
[1641511548575,1.3720644,3410.0,3409.7,17.07]
[1641511551416,1.3720644,3410.0,3409.6,2.9]
[1641511551816,1.3720644,3410.0,3409.7,0.00795793]
[1641511552220,3.67079898,3410.0,3409.7,0.00795793]
[1641511552617,4.40406898,3410.0,3409.7,0.00795793]
[1641511553478,4.40406898,3410.0,3409.6,1.50475793]
[1641511553479,0.73334,3409.9,3409.6,1.50475793]
[1641511553778,0.73334,3409.9,3408.5,1.48160519]
[1641511553779,0.73343,3409.7,3408.5,1.48160519]
[1641511553980,2.70293067,3409.6,3408.5,1.48160519]
[1641511554179,3.30293067,3409.6,3408.6,0.00625266]
[1641511554377,2.55038695,3409.5,3408.6,0.00625266]
[1641511554578,0.73355,3409.1,3408.6,0.00625266]
[1641511554779,1.40920809,3408.8,3408.6,0.00625266]
[1641511554978,1.40920809,3408.8,3408.2,0.00852635]
[1641511555179,1.25785381,3408.3,3408.2,0.00852635]
[1641511555986,1.40920809,3408.8,3408.2,0.00852635]
[1641511557314,1.46094433,3408.3,3408.2,0.00852635]
[1641511558316,0.42,3409.4,3408.2,0.00852635]
[1641511559623,1.1534,3409.4,3408.2,0.00852635]
[1641511559816,1.38921227,3408.7,3408.3,17.07]
[1641511560217,1.41613942,3409.7,3408.5,27.08143276]
[1641511560481,0.00516155,3409.8,3408.7,0.73321]
[1641511560673,0.00516155,3409.8,3408.8,17.07]
[1641511560875,0.00516155,3409.8,3408.8,17.07511581]
[1641511561075,0.00516155,3409.8,3408.9,0.00454739]
[1641511561278,1.16646005,3409.6,3408.9,0.00454739]
[1641511561781,1.16646005,3409.6,3409.2,0.73314]
[1641511562074,1.16646005,3409.6,3409.3,17.0722737]
[1641511562476,1.16646005,3409.6,3409.4,0.00170527]
[1641511570468,1.16646005,3409.6,3409.5,17.07]
[1641511570867,1.16646005,3409.6,3409.5,17.07113685]
[1641511573621,1.10076222,3410.2,3409.5,17.07113685]
[1641511575123,1.11300683,3409.7,3409.5,17.07113685]
[1641511575379,1.11300683,3409.7,3409.5,0.00113685]
[1641511575974,2.19418,3410.4,3409.5,17.07113685]
[1641511576170,1.461,3410.4,3409.5,17.07113685]
[1641511577171,1.53519375,3409.7,3409.6,1.50584501]
[1641511577971,1.53519375,3409.7,3409.5,0.00113685]
[1641511579124,1.53519375,3409.7,3409.6,17.07]
[1641511579528,1.01137656,3410.2,3409.7,3.46480625]
[1641511579730,1.49036654,3409.9,3409.7,3.46480625]
[1641511580328,1.49036654,3409.9,3409.7,4.97065126]
[1641511581131,1.49036654,3409.9,3409.7,3.46480625]
[1641511581531,0.00113684,3409.9,3409.7,3.46480625]
[1641511583576,1.461,3410.4,3409.7,3.46480625]
[1641511583780,1.406509,3410.6,3409.7,3.46480625]
[1641511583781,1.461,3410.6,3409.8,17.07]
[1641511583979,0.00341054,3410.3,3409.9,17.07]
[1641511584379,0.00284211,3410.2,3409.9,17.07]
[1641511584579,0.00284211,3410.2,3409.9,19.30885501]
[1641511584777,0.00227369,3410.1,3409.9,19.30885501]
[1641511585177,0.00170527,3410.0,3409.9,19.30885501]
[1641511585379,0.00170527,3410.0,3409.8,19.1957377]
[1641511585780,0.00113684,3409.9,3409.8,19.1957377]
[1641511586177,0.00113684,3409.9,3409.8,2.1257377]
[1641511586382,0.00113684,3409.9,3409.8,1.46602]
[1641511586624,0.00113684,3409.9,3409.8,18.53602]
[1641511587722,0.00113684,3409.9,3409.8,1.46602]
[1641511590223,0.00113684,3409.9,3409.8,18.53602]
[1641511590466,0.00113684,3409.9,3409.8,19.26905]
[1641511591868,3.684e-05,3409.9,3409.8,19.26905]
[1641511592077,0.74145804,3411.1,3409.9,6.4]
[1641511592367,0.74145804,3411.1,3410.0,17.07]
[1641511592368,0.00454739,3410.7,3410.0,17.07]
[1641511592567,0.00454739,3410.7,3410.4,1.50510848]
[1641511592768,0.00397897,3410.6,3410.5,0.3]
[1641511592968,0.00397897,3410.6,3410.5,17.40592817]
[1641511593369,0.00397897,3410.6,3410.5,18.53403106]
[1641511593569,0.00397897,3410.6,3410.5,18.73273106]
[1641511593768,0.00397897,3410.6,3410.5,17.60462817]
[1641511594626,0.00397897,3410.6,3410.5,17.40592817]
[1641511594826,0.00397897,3410.6,3410.5,17.10592817]
[1641511598075,0.00397897,3410.6,3410.5,42.96046083]
[1641511601283,0.00397897,3410.6,3410.5,43.26046083]
[1641511601481,0.00397897,3410.6,3410.5,47.16046083]
[1641511601725,0.9965928,3411.0,3410.6,3.9]
[1641511601926,0.9965928,3411.0,3410.8,0.73269]
[1641511602223,0.9965928,3411.0,3410.9,17.07]
[1641511602621,0.99886649,3411.0,3410.9,17.07]
[1641511603625,0.99886649,3411.0,3410.9,17.7294157]
[1641511604024,0.99886649,3411.0,3410.9,17.7602771]
[1641511604228,0.99886649,3411.0,3410.9,19.33655587]
[1641511611326,0.99886649,3411.0,3410.9,19.36687593]
[1641511611525,0.99886649,3411.0,3410.9,19.33655587]
[1641511614974,0.99886649,3411.0,3410.9,17.7294157]
[1641511622171,0.99886649,3411.0,3410.7,1.4654]
[1641511622373,0.99886649,3411.0,3410.6,4.25476944]
[1641511622374,0.99886649,3411.0,3410.6,0.00516114]
[1641511622576,0.00170527,3410.9,3410.6,0.00516114]
[1641511622973,0.00113685,3410.8,3410.6,0.00516114]
[1641511623274,0.00170527,3410.9,3410.6,0.00516114]
[1641511623473,2.62098912,3410.8,3410.6,0.00516114]
[1641511623673,2.62212597,3410.8,3410.6,0.00516114]
[1641511625361,2.62212597,3410.8,3410.5,2.9]
[1641511628873,1.25378098,3410.8,3410.5,2.9]
[1641511632931,1.20378098,3410.8,3410.6,0.73291]
[1641511635371,1.11811228,3410.8,3410.6,0.73291]
[1641511636376,1.11811228,3410.8,3410.5,4.2925224]
[1641511636573,1.11811228,3410.8,3410.5,2.9]
[1641511638975,1.11064551,3410.8,3410.5,2.9]
[1641511642881,0.00113685,3410.8,3410.5,2.9]
[1641511643083,0.00113685,3410.8,3410.5,20.06]
[1641511643284,0.00113685,3410.8,3410.6,0.6595702]
[1641511643485,0.00113685,3410.8,3410.7,0.03408224]
[1641511643682,0.00113685,3410.8,3410.7,17.19408224]
[1641511643884,0.00113685,3410.8,3410.7,17.49408224]
[1641511644283,0.00113685,3410.8,3410.7,17.91408224]
[1641511644585,0.06111155,3411.7,3411.0,17.16]
[1641511644784,0.06111155,3411.7,3411.0,17.49744184]
[1641511644983,0.06111155,3411.7,3411.1,17.16]
[1641511645184,1.406509,3412.1,3411.2,17.16]
[1641511645582,0.00511581,3411.7,3411.2,17.16]
[1641511645883,0.00454738,3411.6,3411.2,18.64160519]
[1641511646088,1.3641136,3411.5,3411.2,18.64160519]
[1641511646283,1.36809256,3411.5,3411.2,18.64160519]
[1641511646483,0.00341054,3411.4,3411.2,18.64160519]
[1641511646926,0.00284211,3411.3,3411.2,18.64160519]
[1641511647127,0.00284211,3411.3,3411.2,17.16]
[1641511650129,0.00284211,3411.3,3411.1,1.4655]
[1641511650396,0.00284211,3411.3,3411.0,17.8928]
[1641511650585,0.00227369,3411.2,3411.0,17.8928]
[1641511650984,0.00170527,3411.1,3411.0,17.8928]
[1641511651185,0.00170527,3411.1,3411.0,18.5523013]
[1641511651394,1.054e-05,3411.1,3411.0,21.7523013]
[1641511651584,1.054e-05,3411.1,3411.0,21.75456446]
[1641511652785,1.054e-05,3411.1,3411.0,22.99316446]
[1641511658272,1.054e-05,3411.1,3411.0,22.69316446]
[1641511658671,1.054e-05,3411.1,3411.0,23.29316446]
[1641511659472,1.054e-05,3411.1,3411.0,22.05456446]
[1641511660074,1.054e-05,3411.1,3411.0,23.53770185]
[1641511661178,1.054e-05,3411.1,3411.0,22.05456446]
[1641511662123,1.054e-05,3411.1,3411.0,23.53770185]
[1641511662922,1.054e-05,3411.1,3411.0,23.70918765]
[1641511663730,1.47421867,3411.3,3411.2,17.16]
[1641511664124,1.47421867,3411.3,3411.2,17.46113685]
[1641511664527,1.47421867,3411.3,3411.2,19.11576004]
[1641511666277,1.47421867,3411.3,3411.2,18.81576004]
[1641511667878,1.47421867,3411.3,3411.2,19.11576004]
[1641511668076,1.47421867,3411.3,3411.2,18.81576004]
[1641511668276,0.00516118,3411.8,3411.2,18.81576004]
[1641511668476,0.00516118,3411.8,3411.5,17.16]
[1641511668777,0.00170527,3411.7,3411.5,17.819433]
[1641511669220,0.00113684,3411.6,3411.5,17.819433]
[1641511672021,0.00113684,3411.6,3411.5,19.48246438]
[1641511686028,0.00113684,3411.6,3411.5,19.78246438]
[1641511688480,0.00113684,3411.6,3411.5,19.48246438]
[1641511692327,2.18710182,3412.2,3411.5,1.66303138]
[1641511692527,2.18710182,3412.2,3411.7,32.33308297]
[1641511692728,0.00284212,3412.1,3411.7,32.33308297]
[1641511693128,0.0022737,3412.0,3411.7,32.33308297]
[1641511693529,0.00170527,3411.9,3411.7,32.33308297]
[1641511693931,0.00113685,3411.8,3411.7,32.33308297]
[1641511695029,0.00113685,3411.8,3411.7,33.99840793]
[1641511699834,0.48388685,3412.0,3411.7,33.99840793]
[1641511700835,0.48388685,3412.0,3411.8,1.66532496]
[1641511702434,0.48388685,3412.0,3411.8,4.56532496]
[1641511709137,0.48388685,3412.0,3411.8,2.9]
[1641511711290,2.10923913,3411.9,3411.8,0.92862507]
[1641511711492,2.10923913,3411.9,3411.2,1.66737902]
[1641511711493,4.18127913,3411.9,3411.2,1.66737902]
[1641511711687,0.73302,3411.5,3411.2,1.66737902]
[1641511711890,0.73304,3411.4,3411.3,0.00284212]
[1641511712287,3.18252776,3411.4,3411.0,1.48835366]
[1641511712489,0.42,3411.3,3410.2,2.30985092]
[1641511712687,2.21106652,3411.2,3411.1,0.00113684]
[1641511712888,0.42,3411.2,3411.1,0.00113684]
[1641511713087,2.91917,3411.2,3410.2,2.30985092]
[1641511713289,1.91917,3411.2,3409.9,0.00516118]
[1641511713489,1.18721676,3410.4,3410.3,0.00454739]
[1641511713888,0.7332117,3410.3,3410.0,0.00625266]
[1641511714139,2.23453525,3410.2,3410.0,0.00625266]
[1641511714335,0.73322,3410.1,3410.0,0.00625266]
[1641511715338,2.13476824,3410.1,3410.0,0.00625266]
[1641511718585,1.40154824,3410.1,3410.0,0.00625266]
[1641511718791,0.42,3410.6,3410.0,0.00625266]
[1641511718987,0.42,3411.0,3410.0,0.00625266]
[1641511719686,0.42,3411.0,3410.1,17.16]
[1641511719886,1.97226479,3411.0,3410.1,17.16]
[1641511720087,1.97226479,3411.0,3410.2,0.00511582]
[1641511720286,1.55226479,3411.0,3410.2,0.00511582]
[1641511721490,1.55226479,3411.0,3410.2,0.73807582]
[1641511721737,1.55226479,3411.0,3410.2,0.00511582]
[1641511721942,2.28527479,3411.0,3410.2,0.00511582]
[1641511722337,2.28527479,3411.0,3410.2,18.65538862]
[1641511723137,4.98527479,3411.0,3410.3,1.39510179]
[1641511723537,4.98527479,3411.0,3410.4,0.00397897]
[1641511723738,4.98527479,3411.0,3410.4,17.16397897]
[1641511724141,4.98527479,3411.0,3410.5,0.00341054]
[1641511724442,4.98527479,3411.0,3410.4,0.00397897]
[1641511724838,4.98527479,3411.0,3410.5,1.39510179]
[1641511725239,4.98527479,3411.0,3410.6,0.00284212]
[1641511725508,0.73311,3410.8,3410.6,0.00284212]
[1641511726114,1.18296676,3410.7,3410.6,0.00284212]
[1641511726808,1.13296676,3410.7,3410.6,0.00284212]
[1641511727210,1.22856147,3410.2,3410.1,0.00568424]
[1641511727411,1.13296676,3410.7,3410.1,0.00568424]
[1641511727614,0.73311,3410.8,3410.1,0.00568424]
[1641511730332,1.27207489,3410.2,3410.1,0.00568424]
[1641511731634,1.27207489,3410.2,3410.1,1.49595704]
[1641511733186,1.27207489,3410.2,3410.1,0.00568424]
[1641511733786,3.97207489,3410.2,3410.1,0.00568424]
[1641511734486,3.97207489,3410.2,3410.0,0.00625266]
[1641511735286,3.97069304,3410.2,3410.0,0.00625266]
[1641511740782,2.7,3410.2,3410.0,0.00625266]
[1641511741287,2.7,3410.2,3410.0,17.16625266]
[1641511741783,2.7,3410.2,3410.1,0.00568424]
[1641511742183,2.7,3410.2,3410.1,18.56078603]
[1641511742488,2.7,3410.2,3410.1,1.40078603]
[1641511742884,2.7,3410.2,3410.1,1.49595704]
[1641511744134,2.7,3410.2,3410.1,0.00568424]
[1641511746136,2.7,3410.2,3410.0,0.00625266]
[1641511746937,0.73326,3410.1,3410.0,0.00625266]
[1641511747539,2.7,3410.2,3410.0,0.00625266]
[1641511749584,2.7,3410.2,3410.1,1.4902728]
[1641511749986,2.7,3410.2,3410.1,1.49595704]
[1641511750391,2.7,3410.2,3410.1,0.00568424]
[1641511750987,2.7,3410.2,3410.1,1.49595704]
[1641511753436,2.7,3410.2,3410.1,0.00568424]
[1641511754738,2.7,3410.2,3410.0,1.49652546]
[1641511755238,2.7,3410.2,3410.1,0.00568424]
[1641511757816,2.7,3410.2,3410.0,0.00625266]
[1641511758223,2.7,3410.2,3410.0,1.49652546]
[1641511758515,2.7,3410.2,3410.1,0.00568424]
[1641511759333,2.7,3410.2,3410.0,0.00625266]
[1641511764286,0.23417957,3410.2,3410.0,0.00625266]
[1641511764486,0.00519439,3410.9,3410.1,5.08914164]
[1641511764687,0.00519439,3410.9,3410.8,32.48784576]
[1641511764884,0.00519439,3410.9,3410.8,49.64784576]
[1641511765087,0.00519439,3410.9,3410.8,50.34055103]
[1641511765287,2.19340454,3411.7,3411.0,0.73282]
[1641511765587,1.56344728,3411.4,3411.0,0.73282]
[1641511765988,0.00113684,3411.3,3411.0,0.73282]
[1641511766643,0.00113684,3411.3,3411.1,0.73281]
[1641511767361,0.00113684,3411.3,3411.0,0.73282]
[1641511767551,0.00113684,3411.3,3410.8,32.48955103]
[1641511767844,0.00113684,3411.3,3410.9,0.66070925]
[1641511770790,0.00113684,3411.3,3410.9,0.00113685]
[1641511772793,2.70113684,3411.3,3410.9,0.00113685]
[1641511774237,0.00113684,3411.3,3410.9,0.00113685]
[1641511790039,0.00113684,3411.3,3411.0,1.46564]
[1641511790243,0.00113684,3411.3,3411.1,18.62538]
[1641511790442,0.00113684,3411.3,3411.2,17.16]
[1641511790643,0.00113684,3411.3,3411.2,17.19709732]
[1641511791048,0.00113684,3411.3,3411.2,18.22638719]
[1641511791244,0.00113684,3411.3,3411.2,17.19709732]
[1641511791442,3.684e-05,3411.3,3411.2,17.19709732]
[1641511791644,3.684e-05,3411.3,3411.2,17.49709732]
[1641511792343,1.41155465,3412.8,3411.3,6.4]
[1641511792543,1.41155465,3412.8,3412.0,0.73249]
[1641511792745,0.00682108,3412.5,3412.1,17.16]
[1641511793196,0.00625266,3412.4,3412.1,17.16]
[1641511793592,0.00568424,3412.3,3412.2,19.9434348]
[1641511794692,0.00568424,3412.3,3412.2,17.89252]
[1641511799345,0.00568424,3412.3,3412.2,19.29788419]
[1641511799749,0.00568424,3412.3,3412.2,19.59788419]
[1641511800144,0.00568424,3412.3,3412.2,19.63384119]
[1641511800412,0.00568424,3412.3,3412.2,19.59788419]
[1641511802710,0.00568424,3412.3,3412.2,19.89788419]
[1641511803311,0.00568424,3412.3,3412.2,19.16536419]
[1641511803611,0.00568424,3412.3,3412.2,18.86536419]
[1641511805639,0.00568424,3412.3,3412.2,18.56536419]
[1641511805844,0.00568424,3412.3,3412.2,1.40536419]
[1641511806040,1.39772894,3412.8,3412.2,1.40536419]
[1641511806441,1.39772894,3412.8,3411.9,17.16]
[1641511806442,0.00568424,3412.3,3411.9,17.16]
[1641511806840,0.00511581,3412.2,3411.9,17.16]
[1641511807041,1.13604662,3412.1,3411.9,17.16]
[1641511807241,1.14059401,3412.1,3411.9,17.16]
[1641511807444,0.00397897,3412.0,3411.9,18.62522]
[1641511808593,0.00397897,3412.0,3411.9,1.46522]
[1641511809392,0.00397897,3412.0,3411.9,1.68579743]
[1641511809593,0.00397897,3412.0,3411.9,19.06637486]
[1641511810095,0.00397897,3412.0,3411.9,1.90637486]
[1641511811296,0.00397897,3412.0,3411.9,1.17376486]
[1641511812139,0.00397897,3412.0,3411.9,18.63376486]
[1641511813748,0.00397897,3412.0,3411.9,18.33376486]
[1641511814545,0.00397897,3412.0,3411.9,19.06634486]
[1641511815790,0.00397897,3412.0,3411.9,19.36634486]
[1641511816391,0.00397897,3412.0,3411.9,20.84974159]
[1641511817691,0.00397897,3412.0,3411.9,21.14974159]
[1641511818492,0.00397897,3412.0,3411.9,20.84974159]
[1641511818693,0.00397897,3412.0,3411.9,19.06634486]
[1641511818893,0.00397897,3412.0,3411.9,18.33376486]
[1641511819745,1.21192004,3412.0,3411.9,18.33376486]
[1641511819946,1.21192004,3412.0,3411.9,19.09073577]
[1641511823496,1.21192004,3412.0,3411.9,20.53217961]
[1641511826500,1.21192004,3412.0,3411.9,3.37217961]
[1641511827541,1.21192004,3412.0,3411.9,0.44115486]
[1641511837450,1.20794107,3412.0,3411.9,0.44115486]
[1641511848906,7.88528962,3411.4,3411.2,1.44331011]
[1641511849651,7.87946823,3411.4,3411.2,1.44331011]
[1641511850055,1.17280049,3411.3,3411.2,1.44331011]
[1641511850448,2.2834725,3411.3,3411.2,1.44331011]
[1641511850749,2.2834725,3411.3,3411.1,2.23028912]
[1641511850750,2.2834725,3411.3,3411.1,0.00519403]
[1641511851351,1.50353994,3410.5,3410.4,2.22509509]
[1641511851549,0.73299,3411.1,3410.4,2.22509509]
[1641511851758,1.17280049,3411.3,3410.4,2.23540509]
[1641511851950,3.28252744,3411.3,3410.4,2.23540509]
[1641511852155,1.17280049,3411.3,3410.4,2.23540509]
[1641511852752,1.90576049,3411.3,3410.4,2.23540509]
[1641511853196,1.90576049,3411.3,3410.4,2.2302109]
[1641511853393,1.47256577,3410.8,3410.4,2.2302109]
[1641511854594,1.47256577,3410.8,3410.4,0.00511581]
[1641511854795,1.47256577,3410.8,3410.4,0.73805581]
[1641511854994,1.47256577,3410.8,3410.4,0.73294]
[1641511855193,1.47256577,3410.8,3410.5,0.00454738]
[1641511855894,1.17280049,3411.3,3410.5,0.00454738]
[1641511857245,1.31153975,3411.0,3410.5,0.00454738]
[1641511859247,1.31153975,3411.0,3410.6,0.2931]
[1641511859651,1.31153975,3411.0,3410.7,0.00341054]
[1641511861390,7.87946823,3411.4,3410.7,0.00341054]
[1641511862392,0.73296,3411.3,3410.7,0.00341054]
[1641511863002,1.12093452,3410.9,3410.7,0.00341054]
[1641511863192,1.12093452,3410.9,3410.8,0.2931]
[1641511863593,1.12093452,3410.9,3410.8,0.29594211]
[1641511867580,9.34537823,3411.4,3410.8,0.29594211]
[1641511867998,9.34537823,3411.4,3410.9,0.00227369]
[1641511868394,9.34537823,3411.4,3411.0,0.2931]
[1641511868794,9.34537823,3411.4,3411.1,0.00113684]
[1641511869397,1.1385128,3411.2,3411.1,0.00113684]
[1641511871842,1.1385128,3411.2,3411.1,0.29423684]
[1641511876589,1.1385128,3411.2,3411.1,0.24423684]
[1641511876989,1.1385128,3411.2,3410.8,0.24423684]
[1641511877390,1.1385128,3411.2,3410.9,0.00113685]
[1641511880040,0.9885128,3411.2,3411.0,0.24423684]
[1641511883996,0.73297,3411.3,3411.0,0.24423684]
[1641511884396,8.61239823,3411.4,3411.0,0.24423684]
[1641511884598,7.87946823,3411.4,3411.0,0.24423684]
[1641511884796,0.00113684,3411.3,3411.0,0.24423684]
[1641511885398,1.22212683,3411.3,3411.0,0.24423684]
[1641511890596,3.80698373,3411.3,3411.0,0.24423684]
[1641511890796,5.27296563,3411.3,3410.9,0.00113685]
[1641511890992,5.27296563,3411.3,3410.6,1.47789395]
[1641511890993,0.01246985,3411.0,3410.6,1.47789395]
[1641511891191,0.42,3410.9,3410.6,1.47789395]
[1641511891391,0.42,3410.9,3410.7,0.00113685]
[1641511891992,1.10944321,3410.8,3410.7,0.00113685]
[1641511892194,3.72898321,3410.8,3410.7,0.00113685]
[1641511892796,7.0928626,3410.8,3410.1,0.00454739]
[1641511892994,5.3596926,3410.8,3410.1,0.00454739]
[1641511893398,1.12765223,3410.7,3410.1,0.00454739]
[1641511893694,1.29227075,3410.2,3410.1,0.00454739]
[1641511893897,3.41592625,3410.2,3410.1,0.00454739]
[1641511894150,3.41592625,3410.2,3410.0,0.00511581]
[1641511894545,1.42267117,3410.1,3410.0,0.00511581]
[1641511894746,3.56997611,3410.1,3410.0,0.00511581]
[1641511894946,1.42267117,3410.1,3410.0,0.00511581]
[1641511895546,3.51888671,3410.1,3410.0,0.00511581]
[1641511895746,4.25216671,3410.1,3410.0,0.00511581]
[1641511896745,2.15595117,3410.1,3410.0,0.00511581]
[1641511897345,4.28254284,3410.1,3410.0,0.00511581]
[1641511898597,2.15595117,3410.1,3410.0,0.00511581]
[1641511899997,4.24726296,3410.1,3410.0,0.00511581]
[1641511901102,2.15595117,3410.1,3410.0,0.00511581]
[1641511902645,4.26875255,3410.1,3410.0,0.00511581]
[1641511903448,2.15595117,3410.1,3410.0,0.00511581]
[1641511903652,4.29700395,3410.1,3410.0,0.00511581]
[1641511903847,2.15595117,3410.1,3410.0,0.00511581]
[1641511919049,2.29633124,3410.6,3410.0,0.00511581]
[1641511919250,2.61962,3411.1,3410.0,0.00511581]
[1641511919448,0.00170527,3411.2,3410.0,0.00511581]
[1641511919645,0.00170527,3411.2,3410.0,1.14861581]
[1641511919846,1.13347877,3410.6,3410.0,1.14861581]
[1641511920048,1.13347877,3410.6,3410.1,0.00454739]
[1641511920394,1.13347877,3410.6,3410.2,0.6597144]
[1641511920802,1.13347877,3410.6,3410.3,0.00341054]
[1641511921998,1.13347877,3410.6,3410.0,0.00511581]
[1641511926952,1.86659877,3410.6,3410.0,0.00511581]
[1641511930798,2.12373864,3410.5,3410.0,0.00511581]
[1641511930998,0.73319,3410.3,3410.0,0.00511581]
[1641511931200,2.13340263,3410.2,3410.0,0.00511581]
[1641511931656,1.46652,3410.4,3410.0,0.00511581]
[1641511931843,2.11359306,3410.3,3410.0,0.00511581]
[1641511932044,1.46652,3410.4,3410.0,0.00511581]
[1641511932246,0.42,3410.3,3410.0,0.00511581]
[1641511932448,3.28393002,3410.3,3410.0,0.00511581]
[1641511932646,0.73326,3410.2,3410.0,0.00511581]
[1641511938092,1.63176,3410.2,3410.0,0.00511581]
[1641511938294,1.88675,3410.1,3410.0,0.00511581]
[1641511940352,4.04863004,3410.1,3410.0,0.00511581]
[1641511941852,5.04863004,3410.1,3410.0,0.00511581]
[1641511942052,5.04863004,3410.1,3409.4,0.00516107]
[1641511942053,2.65,3410.0,3409.4,0.00516107]
[1641511942251,0.73348,3409.6,3409.4,0.00516107]
[1641511942452,0.42,3409.5,3409.4,0.00516107]
[1641511942655,1.0297,3409.5,3409.4,0.00516107]
[1641511942897,1.0297,3409.5,3409.4,0.00857161]
[1641511943299,1.0297,3409.5,3409.4,0.00341054]
[1641511943500,2.34047082,3409.5,3409.4,0.00341054]
[1641511943701,3.60693663,3409.5,3409.1,0.00511581]
[1641511943900,0.73351,3409.3,3409.1,0.00511581]
[1641511944100,0.42,3409.2,3409.1,0.00511581]
[1641511944300,2.59612259,3409.2,3409.0,0.00568424]
[1641511944707,0.42,3409.2,3409.0,0.00568424]
[1641511945002,2.86554803,3409.1,3409.0,0.00568424]
[1641511945204,3.28554803,3409.1,3409.0,0.00568424]
[1641511945403,1.15352,3409.1,3409.0,0.00568424]
[1641511945703,1.15352,3409.1,3408.7,0.00738951]
[1641511945903,1.26759973,3408.8,3408.7,0.00738951]
[1641511946103,3.33582382,3408.8,3408.7,0.00738951]
[1641511947747,3.33582382,3408.8,3408.6,0.01822134]
[1641511949351,6.17099719,3408.8,3408.6,0.01822134]
[1641511949549,4.06945682,3408.8,3408.6,0.01822134]
[1641511949748,0.42,3408.7,3408.6,0.01822134]
[1641511950412,2.66419407,3408.7,3408.6,0.01822134]
[1641511953005,2.66009407,3408.7,3408.6,0.01822134]
[1641511954148,0.4159,3408.7,3408.6,0.01822134]